[Event "Titled Tuesday Blitz February 01 A 2022"]
[White "Kislinsky, Alexey"]
[Black "Babazada, Khazar"]
[WhiteFideId "14108801"]
[BlackFideId "13413554"]
[WhiteElo "2335"]
[BlackElo "2418"]
[Result "0-1"]
[Round "02"]
[TimeControl "180+1"]
[Date "2022.02.01"]
[WhiteClock "0:00:05"]
[BlackClock "0:00:16"]

1. e4 {[%clk 0:03:00]}  Nf6 {[%clk 0:02:59]} 2. e5 {[%clk 0:02:58]}  Nd5 {[%clk 0:02:59]} 3. d4 {[%clk 0:02:57]}  d6 {[%clk 0:02:58]} 4. Bc4 {[%clk 0:02:58]}  e6 {[%clk 0:02:53]} 5. Qg4 {[%clk 0:02:48]}  Nc6 {[%clk 0:02:49]} 6. Nf3 {[%clk 0:02:48]}  h5 {[%clk 0:02:33]} 7. Qe4 {[%clk 0:02:43]}  Be7 {[%clk 0:02:13]} 8. h4 {[%clk 0:02:36]}  Nb6 {[%clk 0:02:02]} 9. Bb3 {[%clk 0:02:35]}  a5 {[%clk 0:02:02]} 10. a4 {[%clk 0:02:33]}  Bd7 {[%clk 0:01:53]} 11. Nc3 {[%clk 0:02:23]}  Nb4 {[%clk 0:01:53]} 12. Qf4 {[%clk 0:01:40]}  Bc6 {[%clk 0:01:39]} 13. Be3 {[%clk 0:01:34]}  N6d5 {[%clk 0:01:34]} 14. Nxd5 {[%clk 0:01:33]}  Bxd5 {[%clk 0:01:35]} 15. Bxd5 {[%clk 0:01:27]}  Nxd5 {[%clk 0:01:28]} 16. Qg3 {[%clk 0:01:22]}  g6 {[%clk 0:01:27]} 17. Bg5 {[%clk 0:01:19]}  Qd7 {[%clk 0:01:23]} 18. O-O {[%clk 0:01:13]}  O-O-O {[%clk 0:01:02]} 19. c3 {[%clk 0:01:07]}  Bxg5 {[%clk 0:01:01]} 20. Nxg5 {[%clk 0:01:04]}  dxe5 {[%clk 0:01:01]} 21. dxe5 {[%clk 0:01:03]}  Ne7 {[%clk 0:01:02]} 22. Qf4 {[%clk 0:00:50]}  Nf5 {[%clk 0:01:00]} 23. g3 {[%clk 0:00:50]}  Qe7 {[%clk 0:00:56]} 24. Rfd1 {[%clk 0:00:46]}  Rxd1+ {[%clk 0:00:56]} 25. Rxd1 {[%clk 0:00:46]}  Rd8 {[%clk 0:00:57]} 26. Rxd8+ {[%clk 0:00:45]}  Qxd8 {[%clk 0:00:58]} 27. Nxf7 {[%clk 0:00:38]}  Qd1+ {[%clk 0:00:58]} 28. Kh2 {[%clk 0:00:39]}  Qc2 {[%clk 0:00:42]} 29. Ng5 {[%clk 0:00:35]}  Kd7 {[%clk 0:00:42]} 30. Ne4 {[%clk 0:00:26]}  Qxb2 {[%clk 0:00:39]} 31. Nc5+ {[%clk 0:00:25]}  Kc6 {[%clk 0:00:31]} 32. Nxe6 {[%clk 0:00:21]}  Qxc3 {[%clk 0:00:32]} 33. Nf8 {[%clk 0:00:18]}  Qd4 {[%clk 0:00:20]} 34. Qf3+ {[%clk 0:00:09]}  Qd5 {[%clk 0:00:18]} 35. Qc3+ {[%clk 0:00:09]}  Qc5 {[%clk 0:00:18]} 36. Qf3+ {[%clk 0:00:08]}  Qd5 {[%clk 0:00:18]} 37. Qc3+ {[%clk 0:00:08]}  Kb6 {[%clk 0:00:14]} 38. Nxg6 {[%clk 0:00:08]}  Nd4 {[%clk 0:00:15]} 39. Nf4 {[%clk 0:00:06]}  Qe4 {[%clk 0:00:15]} 40. Qe3 {[%clk 0:00:05]}  Qxe3 {[%clk 0:00:14]} 41. fxe3 {[%clk 0:00:06]}  Nf3+ {[%clk 0:00:14]} 42. Kg2 {[%clk 0:00:06]}  Nxe5 {[%clk 0:00:15]} 43. Nxh5 {[%clk 0:00:06]}  Kc6 {[%clk 0:00:15]} 44. Nf6 {[%clk 0:00:06]}  b5 {[%clk 0:00:15]} 45. axb5+ {[%clk 0:00:06]}  Kxb5 {[%clk 0:00:16]} 46. h5 {[%clk 0:00:06]}  a4 {[%clk 0:00:17]} 47. h6 {[%clk 0:00:06]}  a3 {[%clk 0:00:17]} 48. h7 {[%clk 0:00:07]}  Ng6 {[%clk 0:00:18]} 49. Ne4 {[%clk 0:00:07]}  Kc4 {[%clk 0:00:17]} 50. Nd2+ {[%clk 0:00:06]}  Kd3 {[%clk 0:00:17]} 51. Nb3 {[%clk 0:00:06]}  Kc3 {[%clk 0:00:17]} 52. Nc1 {[%clk 0:00:05]}  Kc2 {[%clk 0:00:16]} 53. Na2 {[%clk 0:00:05]}  Kb2 {[%clk 0:00:16]} 54. Nb4 {[%clk 0:00:06]}  c5 {[%clk 0:00:16]} 55. Nd3+ {[%clk 0:00:06]}  Kc2 {[%clk 0:00:17]} 56. Nf4 {[%clk 0:00:04]}  Nh8 {[%clk 0:00:16]} 57. g4 {[%clk 0:00:04]}  a2 {[%clk 0:00:16]} 58. g5 {[%clk 0:00:05]}  a1=Q {[%clk 0:00:17]} 59. g6 {[%clk 0:00:05]}  Qf6 {[%clk 0:00:16]} 0-1


[Site "https://www.chess.com"]

[Event "Titled Tuesday Blitz February 01 A 2022"]
[White "Maksimenko, Viktor"]
[Black "Lenderman, Aleksandr"]
[WhiteFideId "13710478"]
[BlackFideId "2021285"]
[WhiteElo "2269"]
[BlackElo "2651"]
[Result "0-1"]
[Round "02"]
[TimeControl "180+1"]
[Date "2022.02.01"]
[WhiteClock "0:00:46"]
[BlackClock "0:01:20"]

1. d4 {[%clk 0:03:00]}  d6 {[%clk 0:02:59]} 2. c4 {[%clk 0:03:01]}  e5 {[%clk 0:02:59]} 3. Nf3 {[%clk 0:03:00]}  e4 {[%clk 0:02:55]} 4. Nfd2 {[%clk 0:03:00]}  f5 {[%clk 0:02:49]} 5. Nc3 {[%clk 0:02:55]}  Nf6 {[%clk 0:02:49]} 6. e3 {[%clk 0:02:50]}  g6 {[%clk 0:02:49]} 7. b4 {[%clk 0:02:43]}  Bg7 {[%clk 0:02:48]} 8. Bb2 {[%clk 0:02:42]}  O-O {[%clk 0:02:48]} 9. a4 {[%clk 0:02:39]}  Nc6 {[%clk 0:02:45]} 10. a5 {[%clk 0:02:34]}  Nxb4 {[%clk 0:02:44]} 11. Qb3 {[%clk 0:02:30]}  Nc6 {[%clk 0:02:43]} 12. a6 {[%clk 0:02:28]}  bxa6 {[%clk 0:02:42]} 13. Qa4 {[%clk 0:02:20]}  Bd7 {[%clk 0:02:38]} 14. Qa3 {[%clk 0:02:15]}  Rb8 {[%clk 0:02:36]} 15. Be2 {[%clk 0:02:08]}  Nb4 {[%clk 0:02:35]} 16. Rc1 {[%clk 0:02:07]}  c5 {[%clk 0:02:33]} 17. Nd5 {[%clk 0:01:57]}  Nfxd5 {[%clk 0:02:30]} 18. cxd5 {[%clk 0:01:57]}  cxd4 {[%clk 0:02:29]} 19. Bxd4 {[%clk 0:01:54]}  Bxd4 {[%clk 0:02:28]} 20. exd4 {[%clk 0:01:55]}  Bb5 {[%clk 0:02:27]} 21. Bxb5 {[%clk 0:01:51]}  Rxb5 {[%clk 0:02:28]} 22. O-O {[%clk 0:01:51]}  Nxd5 {[%clk 0:02:28]} 23. Qxa6 {[%clk 0:01:50]}  Qb6 {[%clk 0:02:27]} 24. Qa2 {[%clk 0:01:46]}  Qa5 {[%clk 0:02:21]} 25. Qc4 {[%clk 0:01:38]}  Qb6 {[%clk 0:02:13]} 26. Rb1 {[%clk 0:01:26]}  Rb8 {[%clk 0:02:03]} 27. h4 {[%clk 0:01:23]}  Kg7 {[%clk 0:01:58]} 28. h5 {[%clk 0:01:16]}  gxh5 {[%clk 0:01:51]} 29. Rfc1 {[%clk 0:01:10]}  a6 {[%clk 0:01:35]} 30. Rxb5 {[%clk 0:00:59]}  Qxb5 {[%clk 0:01:35]} 31. Qa2 {[%clk 0:01:00]}  Qb2 {[%clk 0:01:31]} 32. Qxd5 {[%clk 0:00:53]}  Qxc1+ {[%clk 0:01:30]} 33. Nf1 {[%clk 0:00:53]}  Rb1 {[%clk 0:01:28]} 34. Qxf5 {[%clk 0:00:45]}  Qxf1+ {[%clk 0:01:27]} 35. Kh2 {[%clk 0:00:46]}  Qh1+ {[%clk 0:01:20]} 36. Kg3 {[%clk 0:00:46]}  Rb3+ {[%clk 0:01:20]} 0-1


[Site "https://www.chess.com"]

[Event "Titled Tuesday Blitz February 01 A 2022"]
[White "Markov, Mikhail"]
[Black "Le, Tuan Minh"]
[WhiteFideId "13800698"]
[BlackFideId "12401153"]
[WhiteElo "2268"]
[BlackElo "2450"]
[Result "0-1"]
[Round "02"]
[TimeControl "180+1"]
[Date "2022.02.01"]
[WhiteClock "0:01:22"]
[BlackClock "0:01:08"]

1. c4 {[%clk 0:03:00]}  c6 {[%clk 0:03:00]} 2. Nf3 {[%clk 0:03:00]}  d5 {[%clk 0:03:00]} 3. e3 {[%clk 0:03:01]}  Nf6 {[%clk 0:03:01]} 4. Nc3 {[%clk 0:03:01]}  a6 {[%clk 0:03:01]} 5. b3 {[%clk 0:02:59]}  Bg4 {[%clk 0:03:01]} 6. Be2 {[%clk 0:02:55]}  e6 {[%clk 0:02:59]} 7. O-O {[%clk 0:02:55]}  Bd6 {[%clk 0:02:59]} 8. d4 {[%clk 0:02:52]}  Nbd7 {[%clk 0:02:59]} 9. h3 {[%clk 0:02:52]}  Bh5 {[%clk 0:02:58]} 10. Qc2 {[%clk 0:02:52]}  O-O {[%clk 0:02:56]} 11. e4 {[%clk 0:02:52]}  dxe4 {[%clk 0:02:55]} 12. Nxe4 {[%clk 0:02:53]}  Nxe4 {[%clk 0:02:56]} 13. Qxe4 {[%clk 0:02:54]}  a5 {[%clk 0:02:54]} 14. Bf4 {[%clk 0:02:43]}  Nf6 {[%clk 0:02:47]} 15. Qe3 {[%clk 0:02:42]}  a4 {[%clk 0:02:46]} 16. Ne5 {[%clk 0:02:33]}  Bg6 {[%clk 0:02:33]} 17. Bf3 {[%clk 0:02:27]}  Re8 {[%clk 0:02:21]} 18. b4 {[%clk 0:02:14]}  Bxb4 {[%clk 0:02:18]} 19. Nxg6 {[%clk 0:02:14]}  hxg6 {[%clk 0:02:18]} 20. Rab1 {[%clk 0:02:15]}  Bd6 {[%clk 0:02:05]} 21. Rxb7 {[%clk 0:02:11]}  Bxf4 {[%clk 0:02:03]} 22. Qxf4 {[%clk 0:02:11]}  Rc8 {[%clk 0:01:50]} 23. Rfb1 {[%clk 0:02:11]}  Qa5 {[%clk 0:01:44]} 24. g4 {[%clk 0:01:52]}  g5 {[%clk 0:01:36]} 25. Qe5 {[%clk 0:01:52]}  Qc3 {[%clk 0:01:36]} 26. c5 {[%clk 0:01:40]}  Qxf3 {[%clk 0:01:35]} 27. Qxg5 {[%clk 0:01:34]}  Qxh3 {[%clk 0:01:29]} 28. Ra7 {[%clk 0:01:33]}  Qxg4+ {[%clk 0:01:22]} 29. Qxg4 {[%clk 0:01:33]}  Nxg4 {[%clk 0:01:23]} 30. Rbb7 {[%clk 0:01:34]}  Nh6 {[%clk 0:01:24]} 31. Rxa4 {[%clk 0:01:34]}  Red8 {[%clk 0:01:23]} 32. Kf1 {[%clk 0:01:25]}  Nf5 {[%clk 0:01:24]} 33. Raa7 {[%clk 0:01:26]}  Rxd4 {[%clk 0:01:07]} 34. Rxf7 {[%clk 0:01:25]}  Rd5 {[%clk 0:01:08]} 35. a4 {[%clk 0:01:22]}  Rxc5 {[%clk 0:01:08]} 36. a5 {[%clk 0:01:22]}  Rxa5 {[%clk 0:01:08]} 0-1


[Site "https://www.chess.com"]

[Event "Titled Tuesday Blitz February 01 A 2022"]
[White "Martinez Alcantara, Jose Eduardo"]
[Black "Tregubov, Pavel V."]
[WhiteFideId "3805662"]
[BlackFideId "4115341"]
[WhiteElo "2690"]
[BlackElo "2341"]
[Result "1-0"]
[Round "02"]
[TimeControl "180+1"]
[Date "2022.02.01"]
[WhiteClock "0:00:15"]
[BlackClock "0:00:08"]

1. e4 {[%clk 0:03:00]}  c5 {[%clk 0:02:58]} 2. Nf3 {[%clk 0:03:01]}  e6 {[%clk 0:02:57]} 3. c3 {[%clk 0:03:00]}  d5 {[%clk 0:02:57]} 4. exd5 {[%clk 0:02:58]}  exd5 {[%clk 0:02:57]} 5. d4 {[%clk 0:02:58]}  Nc6 {[%clk 0:02:57]} 6. Bb5 {[%clk 0:02:59]}  Bd6 {[%clk 0:02:58]} 7. dxc5 {[%clk 0:02:59]}  Bxc5 {[%clk 0:02:57]} 8. O-O {[%clk 0:03:00]}  Ne7 {[%clk 0:02:57]} 9. Nbd2 {[%clk 0:03:01]}  O-O {[%clk 0:02:57]} 10. Nb3 {[%clk 0:03:02]}  Bd6 {[%clk 0:02:56]} 11. h3 {[%clk 0:02:56]}  Nf5 {[%clk 0:02:49]} 12. Bd3 {[%clk 0:02:49]}  h6 {[%clk 0:02:40]} 13. Bc2 {[%clk 0:02:45]}  Re8 {[%clk 0:02:39]} 14. Re1 {[%clk 0:02:40]}  Rxe1+ {[%clk 0:02:32]} 15. Qxe1 {[%clk 0:02:41]}  Be6 {[%clk 0:02:32]} 16. Be3 {[%clk 0:02:38]}  Qf6 {[%clk 0:02:16]} 17. Bc5 {[%clk 0:02:10]}  Bc7 {[%clk 0:02:14]} 18. Nbd4 {[%clk 0:02:04]}  Nfxd4 {[%clk 0:02:03]} 19. Nxd4 {[%clk 0:01:51]}  Nxd4 {[%clk 0:01:46]} 20. Bxd4 {[%clk 0:01:51]}  Qf4 {[%clk 0:01:47]} 21. g3 {[%clk 0:01:50]}  Qg5 {[%clk 0:01:47]} 22. h4 {[%clk 0:01:47]}  Qg4 {[%clk 0:01:44]} 23. Qd1 {[%clk 0:01:44]}  Re8 {[%clk 0:01:28]} 24. Qxg4 {[%clk 0:01:40]}  Bxg4 {[%clk 0:01:28]} 25. Bb3 {[%clk 0:01:38]}  Bf3 {[%clk 0:01:25]} 26. Kf1 {[%clk 0:01:24]}  a6 {[%clk 0:01:14]} 27. Bd1 {[%clk 0:01:24]}  Be4 {[%clk 0:01:08]} 28. Be2 {[%clk 0:01:24]}  f6 {[%clk 0:01:07]} 29. Rd1 {[%clk 0:01:15]}  Kf7 {[%clk 0:01:06]} 30. f3 {[%clk 0:01:02]}  Bf5 {[%clk 0:01:02]} 31. f4 {[%clk 0:01:01]}  Be4 {[%clk 0:01:00]} 32. Kf2 {[%clk 0:00:57]}  b5 {[%clk 0:00:52]} 33. a4 {[%clk 0:00:49]}  bxa4 {[%clk 0:00:44]} 34. Ra1 {[%clk 0:00:39]}  Rb8 {[%clk 0:00:43]} 35. c4 {[%clk 0:00:28]}  Rb4 {[%clk 0:00:22]} 36. Bc3 {[%clk 0:00:23]}  Rb8 {[%clk 0:00:17]} 37. cxd5 {[%clk 0:00:21]}  Bb6+ {[%clk 0:00:16]} 38. Kf1 {[%clk 0:00:21]}  Bxd5 {[%clk 0:00:15]} 39. Rxa4 {[%clk 0:00:21]}  a5 {[%clk 0:00:16]} 40. Bc4 {[%clk 0:00:18]}  Bxc4+ {[%clk 0:00:15]} 41. Rxc4 {[%clk 0:00:19]}  Rd8 {[%clk 0:00:11]} 42. Rc6 {[%clk 0:00:17]}  Bd4 {[%clk 0:00:11]} 43. Bxa5 {[%clk 0:00:17]}  Rb8 {[%clk 0:00:10]} 44. b4 {[%clk 0:00:17]}  Re8 {[%clk 0:00:10]} 45. Rc4 {[%clk 0:00:15]}  Ba7 {[%clk 0:00:08]} 46. b5 {[%clk 0:00:15]}  Rb8 {[%clk 0:00:08]} 47. Rc7+ {[%clk 0:00:15]} 1-0


[Site "https://www.chess.com"]

[Event "Titled Tuesday Blitz February 01 A 2022"]
[White "Nitin, S."]
[Black "Salinas Herrera, Pablo"]
[WhiteFideId "5018277"]
[BlackFideId "3407128"]
[WhiteElo "2417"]
[BlackElo "2541"]
[Result "1-0"]
[Round "02"]
[TimeControl "180+1"]
[Date "2022.02.01"]
[WhiteClock "0:00:10"]
[BlackClock "0:00:05"]

1. e4 {[%clk 0:03:00]}  g6 {[%clk 0:02:59]} 2. Nc3 {[%clk 0:03:00]}  Bg7 {[%clk 0:02:59]} 3. h4 {[%clk 0:03:00]}  h5 {[%clk 0:02:58]} 4. d4 {[%clk 0:02:59]}  d6 {[%clk 0:02:58]} 5. Be3 {[%clk 0:02:59]}  a6 {[%clk 0:02:59]} 6. Qd2 {[%clk 0:02:59]}  b5 {[%clk 0:02:59]} 7. O-O-O {[%clk 0:02:58]}  Bb7 {[%clk 0:02:59]} 8. f3 {[%clk 0:02:58]}  Nd7 {[%clk 0:03:00]} 9. Nh3 {[%clk 0:02:58]}  e6 {[%clk 0:02:42]} 10. Ng5 {[%clk 0:02:54]}  Ngf6 {[%clk 0:02:38]} 11. Kb1 {[%clk 0:02:35]}  Qe7 {[%clk 0:02:38]} 12. Qf2 {[%clk 0:02:22]}  Nb6 {[%clk 0:02:33]} 13. Bd3 {[%clk 0:02:19]}  Nfd7 {[%clk 0:02:32]} 14. Rhe1 {[%clk 0:02:12]}  c5 {[%clk 0:02:24]} 15. Bf1 {[%clk 0:01:47]}  Rc8 {[%clk 0:02:07]} 16. f4 {[%clk 0:01:37]}  b4 {[%clk 0:01:59]} 17. Ne2 {[%clk 0:01:37]}  Nf6 {[%clk 0:01:50]} 18. dxc5 {[%clk 0:01:27]}  Ng4 {[%clk 0:01:38]} 19. cxd6 {[%clk 0:01:24]}  Nxf2 {[%clk 0:01:22]} 20. dxe7 {[%clk 0:01:23]}  Nxd1 {[%clk 0:01:23]} 21. Rxd1 {[%clk 0:01:21]}  Nc4 {[%clk 0:01:17]} 22. Bc1 {[%clk 0:01:12]}  Kxe7 {[%clk 0:01:13]} 23. e5 {[%clk 0:01:11]}  Rhd8 {[%clk 0:01:10]} 24. Nd4 {[%clk 0:01:11]}  Bd5 {[%clk 0:01:08]} 25. b3 {[%clk 0:01:09]}  Na3+ {[%clk 0:01:03]} 26. Bxa3 {[%clk 0:01:08]}  bxa3 {[%clk 0:01:04]} 27. Bxa6 {[%clk 0:01:08]}  Ra8 {[%clk 0:01:02]} 28. Bf1 {[%clk 0:00:58]}  f6 {[%clk 0:00:59]} 29. c4 {[%clk 0:00:46]}  fxg5 {[%clk 0:00:52]} 30. cxd5 {[%clk 0:00:44]}  Rxd5 {[%clk 0:00:53]} 31. Bc4 {[%clk 0:00:44]}  Rd7 {[%clk 0:00:19]} 32. hxg5 {[%clk 0:00:41]}  Rc8 {[%clk 0:00:14]} 33. Kc2 {[%clk 0:00:36]}  Rf8 {[%clk 0:00:11]} 34. Nxe6 {[%clk 0:00:31]}  Rxd1 {[%clk 0:00:11]} 35. Kxd1 {[%clk 0:00:31]}  Rg8 {[%clk 0:00:10]} 36. Ke2 {[%clk 0:00:26]}  Bh8 {[%clk 0:00:11]} 37. Nd4 {[%clk 0:00:22]}  Rc8 {[%clk 0:00:11]} 38. Ke3 {[%clk 0:00:21]}  Bg7 {[%clk 0:00:10]} 39. Ke4 {[%clk 0:00:21]}  Rc5 {[%clk 0:00:10]} 40. Nb5 {[%clk 0:00:20]}  Bf8 {[%clk 0:00:09]} 41. Nxa3 {[%clk 0:00:19]}  Ke8 {[%clk 0:00:09]} 42. Nb5 {[%clk 0:00:19]}  Be7 {[%clk 0:00:09]} 43. a4 {[%clk 0:00:18]}  Kd7 {[%clk 0:00:09]} 44. a5 {[%clk 0:00:17]}  Bd8 {[%clk 0:00:06]} 45. a6 {[%clk 0:00:16]}  Bb6 {[%clk 0:00:07]} 46. Nd4 {[%clk 0:00:16]}  Ra5 {[%clk 0:00:06]} 47. Bf7 {[%clk 0:00:13]}  Rxa6 {[%clk 0:00:04]} 48. Bxg6 {[%clk 0:00:13]}  Kd8 {[%clk 0:00:02]} 49. Bxh5 {[%clk 0:00:12]}  Ra1 {[%clk 0:00:03]} 50. Bf3 {[%clk 0:00:10]}  Re1+ {[%clk 0:00:03]} 51. Ne2 {[%clk 0:00:10]}  Rb1 {[%clk 0:00:03]} 52. g6 {[%clk 0:00:10]}  Rxb3 {[%clk 0:00:03]} 53. g7 {[%clk 0:00:08]}  Rb4+ {[%clk 0:00:04]} 54. Kf5 {[%clk 0:00:09]}  Ke7 {[%clk 0:00:04]} 55. g8=Q {[%clk 0:00:09]}  Bc5 {[%clk 0:00:05]} 56. Qe6+ {[%clk 0:00:09]}  Kd8 {[%clk 0:00:05]} 57. Qd5+ {[%clk 0:00:09]}  Ke8 {[%clk 0:00:05]} 58. Qxc5 {[%clk 0:00:09]}  Rb8 {[%clk 0:00:05]} 59. Qc7 {[%clk 0:00:09]}  Rd8 {[%clk 0:00:04]} 60. Bh5+ {[%clk 0:00:10]}  Kf8 {[%clk 0:00:05]} 61. Qf7# {[%clk 0:00:10]} 1-0


[Site "https://www.chess.com"]

[Event "Titled Tuesday Blitz February 01 A 2022"]
[White "Nogerbek, Kazybek"]
[Black "Janaszak, Dawid"]
[WhiteFideId "13710427"]
[BlackFideId "1119206"]
[WhiteElo "2478"]
[BlackElo "2199"]
[Result "1-0"]
[Round "02"]
[TimeControl "180+1"]
[Date "2022.02.01"]
[WhiteClock "0:02:06"]
[BlackClock "0:01:00"]

1. c4 {[%clk 0:03:00]}  Nf6 {[%clk 0:02:59]} 2. Nc3 {[%clk 0:03:01]}  g6 {[%clk 0:02:56]} 3. g3 {[%clk 0:02:59]}  Bg7 {[%clk 0:02:56]} 4. Bg2 {[%clk 0:03:00]}  O-O {[%clk 0:02:57]} 5. Nf3 {[%clk 0:03:00]}  c6 {[%clk 0:02:57]} 6. d4 {[%clk 0:02:59]}  d5 {[%clk 0:02:57]} 7. cxd5 {[%clk 0:03:00]}  cxd5 {[%clk 0:02:58]} 8. Ne5 {[%clk 0:03:01]}  e6 {[%clk 0:02:55]} 9. O-O {[%clk 0:03:01]}  Nfd7 {[%clk 0:02:53]} 10. Nf3 {[%clk 0:03:01]}  Nc6 {[%clk 0:02:53]} 11. e4 {[%clk 0:02:54]}  dxe4 {[%clk 0:02:52]} 12. Nxe4 {[%clk 0:02:55]}  b6 {[%clk 0:02:34]} 13. Bg5 {[%clk 0:02:52]}  f6 {[%clk 0:02:26]} 14. Be3 {[%clk 0:02:51]}  Ne7 {[%clk 0:02:07]} 15. Rc1 {[%clk 0:02:34]}  Nd5 {[%clk 0:02:06]} 16. Qb3 {[%clk 0:02:32]}  Ba6 {[%clk 0:02:03]} 17. Rfe1 {[%clk 0:02:31]}  Qe7 {[%clk 0:01:58]} 18. Nfd2 {[%clk 0:02:28]}  Rfc8 {[%clk 0:01:48]} 19. Nc3 {[%clk 0:02:27]}  Nxc3 {[%clk 0:01:10]} 20. bxc3 {[%clk 0:02:25]}  Rab8 {[%clk 0:01:08]} 21. Bf4 {[%clk 0:02:24]}  Qf7 {[%clk 0:01:01]} 22. Bxb8 {[%clk 0:02:23]}  Nxb8 {[%clk 0:01:01]} 23. Qxe6 {[%clk 0:02:23]}  Rd8 {[%clk 0:00:59]} 24. Bf1 {[%clk 0:02:15]}  Bh6 {[%clk 0:00:58]} 25. Rcd1 {[%clk 0:02:13]}  Bg7 {[%clk 0:00:59]} 26. Bxa6 {[%clk 0:02:07]}  Bh6 {[%clk 0:01:00]} 27. Bc4 {[%clk 0:02:06]} 1-0


[Site "https://www.chess.com"]

[Event "Titled Tuesday Blitz February 01 A 2022"]
[White "Papp, Levente"]
[Black "Grandelius, Nils"]
[WhiteFideId "751243"]
[BlackFideId "1710400"]
[WhiteElo "2308"]
[BlackElo "2617"]
[Result "0-1"]
[Round "02"]
[TimeControl "180+1"]
[Date "2022.02.01"]
[WhiteClock "0:00:03"]
[BlackClock "0:00:11"]

1. c4 {[%clk 0:03:00]}  e6 {[%clk 0:02:59]} 2. Nf3 {[%clk 0:03:00]}  d5 {[%clk 0:03:00]} 3. g3 {[%clk 0:03:00]}  a6 {[%clk 0:03:00]} 4. b3 {[%clk 0:02:59]}  b5 {[%clk 0:02:47]} 5. cxd5 {[%clk 0:02:44]}  exd5 {[%clk 0:02:47]} 6. Bg2 {[%clk 0:02:45]}  Nf6 {[%clk 0:02:46]} 7. O-O {[%clk 0:02:45]}  c5 {[%clk 0:02:45]} 8. d3 {[%clk 0:02:39]}  Be7 {[%clk 0:02:42]} 9. e4 {[%clk 0:02:36]}  dxe4 {[%clk 0:02:31]} 10. dxe4 {[%clk 0:02:31]}  Qxd1 {[%clk 0:02:18]} 11. Rxd1 {[%clk 0:02:32]}  Bb7 {[%clk 0:02:17]} 12. Nc3 {[%clk 0:02:05]}  Nxe4 {[%clk 0:02:03]} 13. Nd5 {[%clk 0:01:59]}  Bd8 {[%clk 0:01:45]} 14. Ne5 {[%clk 0:01:40]}  f5 {[%clk 0:01:43]} 15. Bb2 {[%clk 0:01:15]}  O-O {[%clk 0:01:36]} 16. Rac1 {[%clk 0:01:09]}  Nc6 {[%clk 0:01:12]} 17. Nxc6 {[%clk 0:01:00]}  Bxc6 {[%clk 0:01:11]} 18. f3 {[%clk 0:00:55]}  Bxd5 {[%clk 0:00:26]} 19. Rxd5 {[%clk 0:00:54]}  Nf6 {[%clk 0:00:27]} 20. Rxf5 {[%clk 0:00:31]}  Bb6 {[%clk 0:00:27]} 21. Bf1 {[%clk 0:00:24]}  Rad8 {[%clk 0:00:25]} 22. Rc2 {[%clk 0:00:22]}  Nd5 {[%clk 0:00:20]} 23. Rxf8+ {[%clk 0:00:21]}  Rxf8 {[%clk 0:00:20]} 24. Rd2 {[%clk 0:00:09]}  c4+ {[%clk 0:00:17]} 25. Kg2 {[%clk 0:00:09]}  c3 {[%clk 0:00:18]} 26. Rxd5 {[%clk 0:00:09]}  cxb2 {[%clk 0:00:18]} 27. Bd3 {[%clk 0:00:10]}  Rc8 {[%clk 0:00:17]} 28. Rd6 {[%clk 0:00:05]}  Rc3 {[%clk 0:00:18]} 29. Bf5 {[%clk 0:00:03]}  Bc7 {[%clk 0:00:14]} 30. Rd1 {[%clk 0:00:02]}  g6 {[%clk 0:00:13]} 31. Be4 {[%clk 0:00:01]}  Rc1 {[%clk 0:00:13]} 32. Rf1 {[%clk 0:00:02]}  Kf7 {[%clk 0:00:13]} 33. f4 {[%clk 0:00:02]}  Ke6 {[%clk 0:00:13]} 34. f5+ {[%clk 0:00:02]}  Ke5 {[%clk 0:00:13]} 35. Bb1 {[%clk 0:00:02]}  Rxf1 {[%clk 0:00:08]} 36. Kxf1 {[%clk 0:00:02]}  gxf5 {[%clk 0:00:09]} 37. Ke2 {[%clk 0:00:03]}  Bb6 {[%clk 0:00:08]} 38. h3 {[%clk 0:00:03]}  h6 {[%clk 0:00:09]} 39. g4 {[%clk 0:00:04]}  fxg4 {[%clk 0:00:09]} 40. hxg4 {[%clk 0:00:04]}  Kf4 {[%clk 0:00:10]} 41. Bf5 {[%clk 0:00:03]}  h5 {[%clk 0:00:10]} 42. Kd2 {[%clk 0:00:03]}  hxg4 {[%clk 0:00:10]} 43. Bd3 {[%clk 0:00:03]}  g3 {[%clk 0:00:11]} 0-1


[Site "https://www.chess.com"]

[Event "Titled Tuesday Blitz February 01 A 2022"]
[White "Santos Ruiz, Miguel"]
[Black "Grischuk, Alexander"]
[WhiteFideId "22291482"]
[BlackFideId "4126025"]
[WhiteElo "2486"]
[BlackElo "2762"]
[Result "1/2-1/2"]
[Round "02"]
[TimeControl "180+1"]
[Date "2022.02.01"]
[WhiteClock "0:00:49"]
[BlackClock "0:00:19"]

1. e4 {[%clk 0:03:00]}  c5 {[%clk 0:02:58]} 2. Nf3 {[%clk 0:03:00]}  d6 {[%clk 0:02:58]} 3. d4 {[%clk 0:02:59]}  cxd4 {[%clk 0:02:59]} 4. Nxd4 {[%clk 0:03:00]}  Nf6 {[%clk 0:02:59]} 5. Nc3 {[%clk 0:03:01]}  a6 {[%clk 0:02:59]} 6. Be2 {[%clk 0:03:01]}  e5 {[%clk 0:02:59]} 7. Nb3 {[%clk 0:03:01]}  Be7 {[%clk 0:03:00]} 8. Be3 {[%clk 0:03:00]}  Be6 {[%clk 0:03:00]} 9. Nd5 {[%clk 0:03:00]}  Nbd7 {[%clk 0:02:58]} 10. Qd3 {[%clk 0:03:00]}  O-O {[%clk 0:02:58]} 11. O-O {[%clk 0:02:58]}  Bxd5 {[%clk 0:02:58]} 12. exd5 {[%clk 0:02:59]}  Rc8 {[%clk 0:02:59]} 13. c4 {[%clk 0:02:55]}  Ne8 {[%clk 0:02:58]} 14. a4 {[%clk 0:02:53]}  a5 {[%clk 0:02:53]} 15. Bg4 {[%clk 0:02:53]}  e4 {[%clk 0:02:48]} 16. Qxe4 {[%clk 0:02:42]}  Nef6 {[%clk 0:02:45]} 17. Qf4 {[%clk 0:02:33]}  Nxg4 {[%clk 0:02:45]} 18. Qxg4 {[%clk 0:02:34]}  Ne5 {[%clk 0:02:45]} 19. Qe2 {[%clk 0:02:24]}  Nxc4 {[%clk 0:02:43]} 20. Bd4 {[%clk 0:02:19]}  Bf6 {[%clk 0:02:39]} 21. Rfe1 {[%clk 0:02:17]}  Re8 {[%clk 0:01:12]} 22. Bxf6 {[%clk 0:01:48]}  Rxe2 {[%clk 0:01:10]} 23. Bxd8 {[%clk 0:01:47]}  Rxe1+ {[%clk 0:01:09]} 24. Rxe1 {[%clk 0:01:47]}  Rxd8 {[%clk 0:01:10]} 25. Rc1 {[%clk 0:01:38]}  Nxb2 {[%clk 0:00:53]} 26. Nxa5 {[%clk 0:01:37]}  g6 {[%clk 0:00:45]} 27. Rc7 {[%clk 0:01:11]}  Nxa4 {[%clk 0:00:27]} 28. Nxb7 {[%clk 0:01:10]}  Rf8 {[%clk 0:00:22]} 29. Nxd6 {[%clk 0:01:05]}  Nb6 {[%clk 0:00:21]} 30. g3 {[%clk 0:00:48]}  Nxd5 {[%clk 0:00:21]} 31. Rc8 {[%clk 0:00:48]}  Rxc8 {[%clk 0:00:20]} 32. Nxc8 {[%clk 0:00:49]}  Kg7 {[%clk 0:00:19]} 1/2-1/2


[Site "https://www.chess.com"]